Cogmind - Beta 17.1 @@@ ROGUE MODE // 2026.09.20 @ 16:45:29 Player: MEOWRTGM Result: Escaped! Performance ------------- Evolutions (9) 4500 Regions Visited (18) 3600 Robots Destroyed (153) 765 Value Destroyed (9229) 9229 Prototype IDs (19) 380 Alien Tech Used (0) 0 Bonus (9322) 9322 TOTAL SCORE: 27796 Bonus ------- High Alert Combat Kills 403 Follower Combat Kills 1719 Entered Garrisons 1200 Used RIF Installer 3000 Win 3000 Cogmind --------- Core Integrity 1549/1600 Matter 180/300 Energy 168/170 System Corruption 0% Temperature Cool (4) Movement Flying (37) Location To Epsilon Eridani Parts ------- > --- POWER (2) -------- Light Antimatter Reactor > --- PROPULSION (6) --- Cooled Field Propulsion Drive Cooled Field Propulsion Drive > --- UTILITY (14) ----- Enhanced Optical Array Advanced Signal Interpreter Improved System Shield Advanced System Shield Relay Coupler [NC] (39) Relay Coupler [Swarmer] (29) Relay Coupler [Swarmer] (35) Relay Coupler [Brawler] (16) Relay Coupler [Duelist] (33) Relay Coupler [Sentry] (27) Relay Coupler [Sentry] (19) Relay Coupler [Heavy] (15) > --- WEAPON (3) ------- Nanosword > --- INVENTORY (5) ---- Light Quantum Reactor Advanced Sensor Array Long-range Terrain Scanner Improved Transmission Jammer Advanced Datajack Peak State ------------ > --- POWER ------------ Light Quantum Reactor > --- PROPULSION ------- Cooled Field Propulsion Drive Cooled Field Propulsion Drive Field Propulsion Array > --- UTILITY ---------- Enhanced Optical Array Advanced Sensor Array Advanced Signal Interpreter Long-range Terrain Scanner Improved Transmission Jammer Advanced System Shield Relay Coupler [NC] Relay Coupler [Swarmer] Relay Coupler [Swarmer] Relay Coupler [Brawler] Relay Coupler [Duelist] Relay Coupler [Sentry] Relay Coupler [Sentry] Relay Coupler [Heavy] > --- WEAPON ----------- Advanced Datajack Nanosword > --- INVENTORY -------- Light Antimatter Reactor Advanced Hardlight Generator Improved System Shield Relay Coupler [Heavy] Improved Datajack [Rating: 118] Favorites ----------- Power Heavy Ion Engine Engine Heavy Ion Engine Power Core Neutrino Core Reactor Antimatter Reactor Propulsion Armored Wheel Treads Light Treads Wheel Armored Wheel Hover Unit Antigrav Array Flight Unit Field Propulsion Array Utility Relay Coupler [NC] Device Seismic Detector Storage Cargo Storage Unit Processor Enhanced Optical Array Hackware Relay Coupler [NC] Protection Medium Armor Plating Weapon Remote Datajack Energy Gun Quantum Rifle Energy Cannon Plasma Cannon Ballistic Gun Enhanced Autogun Ballistic Cannon Gauss Cannon Launcher Grenade Launcher Special Weapon Remote Datajack Impact Weapon Power Maul Slashing Weapon Nanosword Piercing Weapon Spear Special Melee Weapon Advanced Datajack Build | -11 -10 -9 -8 -8 -8 -8 -7 -7 -6 -6 -5 -5 -4 -4 -3 -3 -2 -1 ------- Run | Yrd Mat Mat Mat Gar Mat Gar Fac Gar Fac Gar Fac Gar Fac Gar Res Tes Res Acc Slots Evolved 18 | . . 2 2 . . . 2 . 2 . 2 . 2 . 2 . 2 2 Power 1 | . . . . . . . . . . . . . . . 1 . . . Propulsion 4 | . . . . . . . . . . . 1 . . . 1 . 1 1 Utility 12 | . . 1 2 . . . 2 . 2 . 1 . 2 . . . 1 1 Weapon 1 | . . 1 . . . . . . . . . . . . . . . . Parts Attached 215 | 7 4 18 7 12 6 8 20 10 11 6 23 28 1 14 22 5 3 10 Power 20 | 1 . 3 . 1 . . 1 1 1 . 1 4 . 1 3 1 1 1 Engine 8 | 1 . 3 . 1 . . 1 . 1 . . 1 . . . . . . Core 6 | . . . . . . . . 1 . . 1 3 . . 1 . . . Reactor 6 | . . . . . . . . . . . . . . 1 2 1 1 1 Propulsion 31 | 2 . 4 2 2 . 2 2 3 2 . 3 2 . 2 3 2 . . Treads 14 | 2 . 3 1 2 . 2 2 . . . . 1 . 1 . . . . Leg . | . . . . . . . . . . . . . . . . . . . Wheel 13 | . . 1 1 . . . . 3 2 . 3 1 . 1 1 . . . Hover 1 | . . . . . . . . . . . . . . . 1 . . . Flight 3 | . . . . . . . . . . . . . . . 1 2 . . Utility 106 | 2 1 2 3 3 2 4 11 6 5 5 14 15 1 9 11 1 2 9 Device 26 | 1 . 2 1 1 . 1 3 . 1 . 5 2 . 3 . . 2 4 Storage 3 | 1 1 . . . . . . 1 . . . . . . . . . . Processor 4 | . . . 1 . . . 1 . . . 1 . . . . . . 1 Hackware 54 | . . . . 1 1 . 5 3 3 5 5 10 1 4 11 1 . 4 Protection 19 | . . . 1 1 1 3 2 2 1 . 3 3 . 2 . . . . Artifact . | . . . . . . . . . . . . . . . . . . . Weapon 58 | 2 3 9 2 6 4 2 6 . 3 1 5 7 . 2 5 1 . . Energy Gun 18 | 1 1 7 . 2 . . 1 . . . . 5 . 1 . . . . Energy Cannon 4 | . . . . . . . 1 . . . 3 . . . . . . . Ballistic Gun 14 | 1 2 1 . 3 2 1 2 . . . . 1 . . 1 . . . Ballistic Cannon 5 | . . . 1 . 1 . . . . 1 1 . . . 1 . . . Launcher 1 | . . . . 1 . . . . . . . . . . . . . . Special Weapon 5 | . . . . . . 1 . . 2 . 1 . . . 1 . . . Impact Weapon 5 | . . 1 1 . . . 2 . 1 . . . . . . . . . Slashing Weapon 2 | . . . . . . . . . . . . 1 . . . 1 . . Piercing Weapon 1 | . . . . . . . . . . . . . . . 1 . . . Special Melee Weapon 3 | . . . . . 1 . . . . . . . . 1 1 . . . Unidentified Prototypes 4 | . . . . . 1 . . . 1 . . . . . 1 1 . . Corrupted Parts 2 | . . . . . . . . . . . . 1 . . 1 . . . System Corruption 6 | . . . . . . . . . . . . 5 . . 1 . . . Parts Lost 71 | . 4 3 3 2 . 2 . 2 2 . 12 15 . 11 12 1 . 2 Power 11 | . . 1 . 1 . . . 1 1 . 1 2 . 1 3 . . . Propulsion 11 | . 1 1 1 . . . . . . . 2 2 . 2 1 . . 1 Utility 27 | . . . 1 . . 2 . . 1 . 5 7 . 5 4 1 . 1 Weapon 22 | . 3 1 1 1 . . . 1 . . 4 4 . 3 4 . . . Highest Loss Streak 13 | . 3 2 3 1 . 1 . 1 2 . 11 13 . 5 10 1 . 2 To Critical Strikes 1 | . . . . . . . . . . . 1 . . . . . . . Average Backups 20 | 1 6 16 16 16 19 18 18 26 25 26 26 22 28 25 19 4 4 4 Power 1 | . 2 3 2 2 1 1 1 . . 1 . 2 3 2 . . 1 1 Propulsion 1 | . . 2 2 2 3 2 2 3 2 2 1 1 1 1 . . . . Utility 11 | . 1 4 4 5 9 9 9 14 16 17 18 15 20 15 13 2 2 2 Weapon 4 | . 2 6 7 6 4 4 4 4 4 4 3 3 4 4 4 . . . Tool/Special . | . . . . . . . . . . . . . . . . . . . Unused Backups 53 | . . 9 . 3 6 3 1 7 1 . 2 3 1 2 6 5 1 3 Power 13 | . . 6 . . 2 . . . . . 1 1 1 . . . 1 1 Propulsion 9 | . . 1 . . 1 1 1 1 . . . 2 . 2 . . . . Utility 20 | . . . . 2 2 2 . 6 1 . . . . . 3 3 . 1 Weapon 10 | . . 2 . 1 1 . . . . . 1 . . . 3 2 . . Tool/Special 1 | . . . . . . . . . . . . . . . . . . 1 Average Slot Usage (%) 86 | . 98 93 98 99 99 94 97 90 84 82 82 75 76 76 62 79 75 78 Engine 5 | . 14 10 9 9 9 9 7 4 2 6 4 . . . . . . . Core 1 | . . . . . . . . 2 3 . . 4 5 . 2 . . . Treads 5 | . 26 10 9 9 9 9 10 . . . . 4 5 3 . . . . Wheel 6 | . . 9 8 9 8 9 4 14 7 6 7 5 5 5 2 . . . Device 11 | . 14 22 18 22 14 9 12 5 15 13 10 4 3 7 2 . 5 7 Storage 6 | . 14 11 9 9 9 9 7 7 6 6 5 5 5 5 2 . . . Processor 3 | . . . 8 9 9 1 3 . . . . 5 5 5 4 4 4 7 Hackware 16 | . . . . . 3 3 12 22 20 22 27 18 26 24 30 51 39 40 Protection 6 | . . . 7 2 9 18 14 7 6 6 5 6 5 4 . . . . Energy Gun 7 | . 4 26 25 17 14 8 4 3 . . . 8 10 6 2 . . . Energy Cannon 1 | . . . . . . . 2 6 5 5 5 . . . . . . . Ballistic Gun 5 | . 23 1 . 8 6 15 10 4 6 5 . . . 4 3 . . . Special Weapon 2 | . . . . . . . 2 5 6 6 4 4 5 . . . . . Peak Build Rating 118 | 7 8 20 22 25 32 34 48 48 59 59 71 81 88 90 92 97 106 118 Average Rating 49 | 5 7 16 21 22 28 31 40 43 55 55 66 70 82 77 68 95 102 110 On Entrance 48 | . 7 5 20 21 24 32 31 43 44 53 58 68 79 84 70 88 92 106 Avg Prop Armor Cover (%) 7 | . . 10 8 8 7 5 6 10 . . . 4 4 6 10 10 . . Naked Turns . | . . . . . . . . . . . . . . . . . . . Heaviest Build 197 | 14 48 60 63 63 69 76 80 181 178 180 187 191 185 197 183 21 28 29 Greatest Support 44 | 40 40 40 12 12 12 12 42 24 28 28 44 44 28 28 28 35 35 35 Greatest Overweight (x) 55 | . 2 4 5 5 5 6 6 7 7 6 6 6 6 7 55 . . . Average Overweight (x) 4 | . . 3 4 4 5 5 4 5 6 5 4 5 6 5 2 . . . Largest Inventory Capacity 30 | 8 20 20 20 20 20 20 20 30 30 30 30 30 30 30 30 5 5 5 Average Capacity 23 | 7 13 20 20 20 20 20 20 27 30 30 30 30 30 30 22 5 5 5 Most Carried 30 | 2 12 20 18 20 20 20 20 30 30 30 30 30 30 29 27 5 5 5 Average Carried 20 | 1 6 16 17 17 19 19 19 26 27 28 27 23 29 25 19 4 4 4 Final Capacity 30 | 8 20 20 20 20 20 20 20 30 30 30 30 30 30 30 5 5 5 5 Final Carried 30 | 2 12 19 17 20 20 20 19 30 26 30 17 30 29 27 5 4 5 5 Class Distribution -------------------- 31% | Bothacker-Tank 21% | Botlord-Tank 14% | Botlord-Mutant 13% | Gunner 6% | Mutant 5% | Bothacker-Mutant 4% | Scavenger-Gunner Dominant Class ---------------- Mutant | -10/Materials Gunner | -9/Materials Gunner | -8/Materials Gunner | -8/Garrison Bothacker-Mutant | -8/Materials Bothacker-Tank | -8/Garrison Bothacker-Tank | -7/Factory Bothacker-Tank | -7/Garrison Bothacker-Tank | -6/Factory Bothacker-Tank | -6/Garrison Botlord-Tank | -5/Factory Botlord-Tank | -5/Garrison Botlord-Tank | -4/Factory Botlord-Mutant | -4/Garrison Botlord-Mutant | -3/Research Botlord-Mutant | -3/Testing Botlord-Mutant | -2/Research Botlord-Scout | -1/Access Resources | -11 -10 -9 -8 -8 -8 -8 -7 -7 -6 -6 -5 -5 -4 -4 -3 -3 -2 -1 ----------- Run | Yrd Mat Mat Mat Gar Mat Gar Fac Gar Fac Gar Fac Gar Fac Gar Res Tes Res Acc Matter Collected 6200 | 278 97 175 . 517 106 540 617 561 294 723 464 997 . 437 249 120 25 . Remotely . | . . . . . . . . . . . . . . . . . . . Salvage Created 6127 | 120 424 659 226 844 7 704 625 555 149 396 203 455 . 360 192 138 70 . Parts 312 | 6 30 39 12 46 5 53 14 25 12 12 9 18 . 13 10 4 4 . Haulers Intercepted 2 | . . 2 . . . . . . . . . . . . . . . . Recyclers Shooed 4 | 1 1 . 1 . . . . . . . 1 . . . . . . . Parts Field Recycled . | . . . . . . . . . . . . . . . . . . . Retrieved Matter . | . . . . . . . . . . . . . . . . . . . Parts Self-Destructed . | . . . . . . . . . . . . . . . . . . . Prevented . | . . . . . . . . . . . . . . . . . . . Parts Restored . | . . . . . . . . . . . . . . . . . . . Kills | -11 -10 -9 -8 -8 -8 -8 -7 -7 -6 -6 -5 -5 -4 -4 -3 -3 -2 -1 ------- Run | Yrd Mat Mat Mat Gar Mat Gar Fac Gar Fac Gar Fac Gar Fac Gar Res Tes Res Acc Combat Hostiles Destroyed 131 | . 11 15 5 25 1 17 10 13 4 7 5 7 . 6 3 2 . . Melee 4 | . . . . . . . . . . . . 2 . . . 2 . . Guns 88 | . 11 11 5 19 . 15 6 7 3 1 . 2 . 6 2 . . . Cannons 23 | . . . . . . 2 4 6 . 6 3 1 . . 1 . . . AOE 12 | . . 3 . 6 1 . . . 1 . . 1 . . . . . . Classes Destroyed 17 | 2 3 4 1 . 1 1 1 . 1 . . 1 . 2 . . . . Worker 2 | . . . . . . . . . 1 . 1 . . . . . . . Builder 1 | . . . . . 1 . . . . . . . . . . . . . Tunneler 3 | 2 . . . . . . . . 1 . . . . . . . . . Hauler 2 | . . 2 . . . . . . . . . . . . . . . . Recycler 4 | 1 1 1 . . . . 1 . . . . . . . . . . . Operator 1 | . 1 . . . . . . . . . . . . . . . . . Watcher 6 | . . 3 1 . . . . . . . . . . . . . 2 . Swarmer 32 | . 6 5 . 10 1 4 1 3 1 1 . . . . . . . . Cutter 2 | . . . . . . . . . . . . . . 2 . . . . Saboteur 2 | . . . . . . . . . . . . 2 . . . . . . Grunt 39 | . 5 4 2 8 . 4 2 4 . 6 . 2 . . . 2 . . Brawler 4 | . . . . . . . 4 . . . . . . . . . . . Duelist 1 | . . 1 . . . . . . . . . . . . . . . . Sentry 23 | . . 5 2 6 . 6 2 1 . 1 . . . . . . . . Specialist 1 | . . . . . . . . . . . . . . 1 . . . . Hunter 11 | . . . 1 1 . 1 . 1 . . 2 2 . 3 . . . . Programmer 19 | . . . . . . 3 1 4 3 . 3 2 . . 3 . . . Best Kill Streak 6 | 2 4 5 5 6 2 4 4 4 3 3 4 2 . 2 3 2 2 . Combat Bots Only 6 | . 3 4 5 6 1 4 4 4 1 3 4 2 . 2 3 2 . . Max Kills in Single Turn 5 | 1 1 5 1 3 2 2 2 1 3 1 1 2 . 1 1 1 1 . Gunslinging 1 | . . . . 1 . . . . . . . . . . . . . . Exploded 3 | . . 3 . 3 1 . . . 1 . . 1 . . . . . . Melee 1 | . . . . . . . . . . . . 1 . . . 1 . . Uniques/NPCs Destroyed . | . . . . . . . . . . . . . . . . . . . Combat | -11 -10 -9 -8 -8 -8 -8 -7 -7 -6 -6 -5 -5 -4 -4 -3 -3 -2 -1 -------- Run | Yrd Mat Mat Mat Gar Mat Gar Fac Gar Fac Gar Fac Gar Fac Gar Res Tes Res Acc Hostile Shots Fired 1195 | . 84 27 46 79 15 78 32 121 26 50 148 168 2 122 88 32 1 76 Missed 400 | . 27 6 12 22 6 24 7 47 10 18 36 44 . 40 35 15 1 50 Hits 795 | . 57 21 34 57 9 54 25 74 16 32 112 124 2 82 53 17 . 26 Melee 20 | . . 4 . . . . 5 . . . . 2 . 8 1 . . . Projectile 775 | . 57 17 34 57 9 54 20 74 16 32 112 122 2 74 52 17 . 26 AOE 4 | . . . . . . . . . . . . 2 . 2 . . . . Critical Strikes 26 | . 2 1 . 4 . 1 . 1 1 2 3 3 . 3 5 . . . Part Disruptions 1 | . . . . . . . . . . . 1 . . . . . . . Damage Taken 13619 | . 839 713 519 808 100 754 396 885 452 245 2014 2325 52 1632 1388 273 . 224 Core 2366 | . 218 117 107 67 . 51 89 125 25 53 239 594 . 195 347 88 . 51 Absorbed by Shields 573 | . . . . . . . . . 94 234 115 64 . 66 . . . . Regen/Repaired (Parts) 83 | . 23 . . . 60 . . . . . . . . . . . . . Core Remaining (%) 69 | 100 12 70 . . . 59 . 69 . 90 . 16 . 83 . 66 100 96 Volleys Fired 587 | 8 39 29 21 46 8 44 49 57 43 56 59 79 2 39 8 . . . Largest 3 | 2 2 3 3 3 3 3 3 3 3 2 2 2 1 3 2 . . . Hottest 208 | 70 70 186 186 177 134 131 188 197 133 105 188 188 7 208 129 . . . Shots Fired 1056 | 16 78 79 42 121 13 113 91 109 59 70 81 102 2 63 17 . . . Gun 687 | 16 78 79 34 119 9 104 50 47 15 19 . 53 . 52 12 . . . Cannon 189 | . . . 8 . 3 9 25 41 13 22 50 13 . . 5 . . . Launcher 3 | . . . . 2 1 . . . . . . . . . . . . . Special 177 | . . . . . . . 16 21 31 29 31 36 2 11 . . . . Kinetic 359 | 8 61 6 8 28 7 72 40 34 15 19 27 13 . 10 11 . . . Thermal 501 | 8 17 57 34 91 5 41 35 54 13 22 23 53 . 42 6 . . . Explosive 3 | . . . . 2 1 . . . . . . . . . . . . . Electromagnetic 16 | . . 16 . . . . . . . . . . . . . . . . Robot Hit Streak 42 | 5 7 15 12 42 3 12 19 22 6 7 12 10 5 6 8 . . . Robot Miss Streak 7 | 2 3 5 4 5 1 6 7 5 7 2 4 7 . 5 2 . . . Penetration Max 1 | . . . . . . . . 1 . . . . . . 1 . . . Secondary Targets 14 | . 2 . 3 7 . 2 . . . . . . . . . . . . Max Gunslinging Chain 2 | . 1 . 1 2 . 1 . . . . . . . . . . . . Shots Hit Robots 697 | 10 52 55 29 95 9 65 65 68 29 36 44 69 2 38 22 3 4 2 Core Hits 367 | 5 25 57 40 75 4 31 27 32 8 9 19 15 . 11 5 2 2 . Critical Kills 6 | . . . . 1 . 2 . . . . 2 1 . . . . . . Critical Parts Destroyed 3 | . . . . 1 . . . . . . . 2 . . . . . . Critical Strikes 21 | . . 5 1 5 1 2 . . . . 2 3 . . 2 . . . Burn 10 | . . 5 1 3 1 . . . . . . . . . . . . . Meltdown 2 | . . . . . . . . . . . 2 . . . . . . . Destroy 4 | . . . . 2 . 2 . . . . . . . . . . . . Blast 2 | . . . . . . . . . . . . . . . 2 . . . Smash 3 | . . . . . . . . . . . . 3 . . . . . . Melee Attacks 135 | . . 2 2 5 8 4 18 2 3 . . 11 . 11 16 14 23 16 Thermal 2 | . . . . . . . . . . . . . . 2 . . . . Impact 47 | . . 2 2 5 4 . 18 2 3 . . 11 . . . . . . Slashing 47 | . . . . . . . . . . . . . . . . 12 21 14 Piercing 2 | . . . . . . . . . . . . . . . 1 1 . . Sneak Attacks 11 | . . . . . 1 . . . . . . . . 3 5 1 1 . Combat Hostiles . | . . . . . . . . . . . . . . . . . . . Follow-up Attacks . | . . . . . . . . . . . . . . . . . . . Damage Inflicted 12789 | 97 485 1191 481 1934 176 1255 1155 1361 793 391 903 1256 . 615 467 100 129 . Guns 8048 | 97 485 757 481 1597 106 1154 661 788 175 83 . 728 . 615 321 . . . Cannons 2872 | . . . . . . 101 494 573 206 308 903 141 . . 146 . . . Explosions 1253 | . . 434 . 337 70 . . . 412 . . . . . . . . . Melee 616 | . . . . . . . . . . . . 387 . . . 100 129 . Ramming . | . . . . . . . . . . . . . . . . . . . Kinetic 3891 | 37 348 11 . 402 31 799 427 440 175 83 565 159 . 66 348 . . . Thermal 7586 | 60 137 891 481 1195 75 456 728 921 618 308 338 710 . 549 119 . . . Explosive 471 | . . 64 . 337 70 . . . . . . . . . . . . . Electromagnetic 225 | . . 225 . . . . . . . . . . . . . . . . Impact 387 | . . . . . . . . . . . . 387 . . . . . . Slashing 229 | . . . . . . . . . . . . . . . . 100 129 . Piercing . | . . . . . . . . . . . . . . . . . . . Highest Corruption 26 | . . . . . . 1 . 5 3 3 8 26 . . 10 10 . . Average Corruption 9 | . . . . . . 1 . 4 1 3 4 24 . . 9 10 . . Corruption Purged . | . . . . . . . . . . . . . . . . . . . Corruption Blocked . | . . . . . . . . . . . . . . . . . . . Effects 186 | . . . . . . 7 . 21 6 19 15 84 . . 21 13 . . Message Errors 50 | . . . . . . 3 . 6 2 5 4 22 . . 6 2 . . Matter Fused 43 | . . . . . . 2 . 5 2 4 2 19 . . 4 5 . . Heat Flow Errors 22 | . . . . . . . . 4 . 2 4 11 . . . 1 . . Energy Discharges 21 | . . . . . . 1 . 4 . 2 2 8 . . 3 1 . . Parts Rejected 5 | . . . . . . . . . . . . 2 . . 3 . . . Parts Fused 1 | . . . . . . . . . . . . 1 . . . . . . Data Loss (minor) 18 | . . . . . . . . . 1 3 1 11 . . 1 1 . . Data Loss (major) 7 | . . . . . . 1 . . . 1 . 3 . . 1 1 . . Misfires 10 | . . . . . . . . 2 1 1 1 3 . . 2 . . . Alerts 2 | . . . . . . . . . . . 1 1 . . . . . . Misdirections 4 | . . . . . . . . . . . . 1 . . 1 2 . . Weapon Failures 3 | . . . . . . . . . . 1 . 2 . . . . . . Overload Shots . | . . . . . . . . . . . . . . . . . . . Overflow Damage 640 | . . 253 . 8 . . . 13 143 . 25 197 . . 1 . . . Projectiles 55 | . . . . . . . . 13 13 . 25 3 . . 1 . . . Explosions 391 | . . 253 . 8 . . . . 130 . . . . . . . . . Melee 194 | . . . . . . . . . . . . 194 . . . . . . Knockbacks 11 | . . . . . . 1 . 1 . . 8 1 . . . . . . Impact 1 | . . . . . . . . . . . . 1 . . . . . . Kinetic 10 | . . . . . . 1 . 1 . . 8 . . . . . . . Secondary . | . . . . . . . . . . . . . . . . . . . Self-Inflicted Damage 665 | . . 396 . . . . . . 269 . . . . . . . . . Shots 8 | . . 5 . . . . . . 3 . . . . . . . . . Rammed . | . . . . . . . . . . . . . . . . . . . Targets Rammed . | . . . . . . . . . . . . . . . . . . . Kicked . | . . . . . . . . . . . . . . . . . . . Crushed . | . . . . . . . . . . . . . . . . . . . Highest Temperature 292 | 60 174 153 285 36 100 203 180 266 30 197 243 236 . 292 18 182 . . Average Temperature 65 | 27 48 51 132 12 44 75 38 78 17 57 77 75 . 111 13 80 . . Received Heat Transfer 1837 | . 339 84 189 288 36 207 75 114 8 106 30 67 9 141 36 81 . 27 Effects 4 | . . . 3 . . . . . . . . . . 1 . . . . Interference 4 | . . . 3 . . . . . . . . . . 1 . . . . Siege Activations . | . . . . . . . . . . . . . . . . . . . Martial Activations . | . . . . . . . . . . . . . . . . . . . Shielding Activations . | . . . . . . . . . . . . . . . . . . . Robots Disrupted . | . . . . . . . . . . . . . . . . . . . Combat Hostiles . | . . . . . . . . . . . . . . . . . . . Robots Corrupted 2 | . . 1 . . . . . . . . . 1 . . . . . . Combat Hostiles 2 | . . 1 . . . . . . . . . 1 . . . . . . Parts Fried 4 | . . 3 . . . . . . . . . 1 . . . . . . Impact Corruptions 8 | . . . . . . . . . . . . 8 . . . . . . Robots Melted 2 | . . . . . . . . . . . 2 . . . . . . . Combat Hostiles 2 | . . . . . . . . . . . 2 . . . . . . . Parts Melted 36 | . 1 3 2 8 . 2 1 4 . 2 4 3 . 4 2 . . . Heat Transferred 13511 | 185 383 1614 839 2573 222 793 1475 1825 650 600 450 964 . 777 161 . . . Parts Sabotaged 6 | . . . . . . . . . . . . 6 . . . . . . Parts Stolen . | . . . . . . . . . . . . . . . . . . . Parts Stripped . | . . . . . . . . . . . . . . . . . . . Power Chain Reactions 1 | . . 1 . . . . . . . . . . . . . . . . Alert | -11 -10 -9 -8 -8 -8 -8 -7 -7 -6 -6 -5 -5 -4 -4 -3 -3 -2 -1 ------- Run | Yrd Mat Mat Mat Gar Mat Gar Fac Gar Fac Gar Fac Gar Fac Gar Res Tes Res Acc Maximum Alert Level 3 | . . 1 . 3 2 3 2 3 1 2 1 1 . 2 1 . . . Low Security (%) 53 | 100 100 85 100 16 . . 43 3 . 17 96 99 100 44 90 100 100 100 Level 1 27 | . . 14 . 26 . 15 48 30 99 75 3 . . 54 9 . . . Level 2 14 | . . . . 33 100 53 7 61 . 7 . . . 1 . . . . Level 3 3 | . . . . 22 . 31 . 4 . . . . . . . . . . Level 4 . | . . . . . . . . . . . . . . . . . . . Level 5 . | . . . . . . . . . . . . . . . . . . . High Security . | . . . . . . . . . . . . . . . . . . . Max Security . | . . . . . . . . . . . . . . . . . . . Peak Influence 1080 | 5 72 311 95 1080 578 892 468 752 394 417 218 252 115 416 234 45 99 115 Initial 526 | . . . 28 55 526 317 468 183 394 137 218 19 79 73 234 6 4 44 Average 230 | . 28 86 19 499 523 579 226 498 287 267 50 101 50 215 62 15 46 64 Influence Increases 6946 | 15 282 590 168 1055 209 595 414 709 300 420 282 526 106 563 121 154 161 276 Destroy 0b10 Robot/C 3200 | . 220 300 100 660 120 360 280 320 120 200 160 140 . 120 60 40 . . Destroy 0b10 Robot/NC 110 | 15 10 30 5 5 5 . 5 . 15 . 5 5 . . . . 10 . Destroy Leader 428 | . 40 90 42 30 10 30 60 10 32 . 30 20 . 20 10 . 4 . Allied During Kill 113 | . . . . 60 12 1 9 5 5 6 10 2 . 3 . . . . Successful Hack 245 | . 12 35 4 6 5 14 12 14 12 14 . . . . . 12 51 54 Disable Machine 345 | . . 75 15 . 15 . . . 75 . 30 . 30 . . 60 15 30 Anti-Garrison Action 1250 | . . . . 200 . 150 . 250 . 150 . 300 . 200 . . . . Destroy Structure 490 | . . 60 2 34 12 10 18 50 26 20 32 59 76 25 6 12 21 27 Partial Spotted 135 | . . . . . . . . . . . . . . . 30 30 45 30 Lose Combat Pursuer 630 | . . . . 60 30 30 30 60 15 30 15 . . 195 15 . 15 135 Influence Decreases 6816 | 15 282 521 152 60 800 192 1044 219 856 199 671 402 153 252 526 156 95 221 Entered New Map 2253 | . . . 41 30 554 172 424 79 358 59 199 9 73 32 182 5 5 31 Time Decay 2895 | 15 242 341 81 . 206 . 580 . 398 . 359 . 80 . 226 117 90 160 Lost Part 548 | . 40 30 30 20 . 20 . 20 20 . 87 63 . 110 78 10 . 20 Lost Ally 820 | . . . . 10 40 . 40 120 80 140 26 180 . 110 40 24 . 10 Purge Threat 300 | . . 150 . . . . . . . . . 150 . . . . . . Squads Dispatched 25 | . . 2 2 . 1 . 6 . 4 . 3 . 1 . 2 2 1 1 Investigation 1 | . . . . . . . 1 . . . . . . . . . . . Extermination 12 | . . . . . . . 3 . 2 . 2 . . . 2 1 1 1 Reinforcement 10 | . . 2 1 . 1 . 2 . 2 . 1 . . . . 1 . . Assault . | . . . . . . . . . . . . . . . . . . . Garrison 2 | . . . 1 . . . . . . . . . 1 . . . . . Intercept . | . . . . . . . . . . . . . . . . . . . Searches Triggered . | . . . . . . . . . . . . . . . . . . . Construction Impeded . | . . . . . . . . . . . . . . . . . . . Haulers Reinforced 1 | . . . . . . . . . . . 1 . . . . . . . Active Scanning Responses . | . . . . . . . . . . . . . . . . . . . Cargo Convoy Interrupts . | . . . . . . . . . . . . . . . . . . . Alert ID Control Effect 28 | . . . . . . . . . . . 8 6 1 12 1 . . . Stealth | -11 -10 -9 -8 -8 -8 -8 -7 -7 -6 -6 -5 -5 -4 -4 -3 -3 -2 -1 --------- Run | Yrd Mat Mat Mat Gar Mat Gar Fac Gar Fac Gar Fac Gar Fac Gar Res Tes Res Acc Distress Signals 10 | . 1 3 . . . . 3 . . . . 1 . . 1 . . 1 Communications Jammed 15 | . . . . . . . . . . . . . . . . . 1 14 Distress Signals 15 | . . . . . . . . . . . . . . . . . 1 14 Times Spotted 352 | . 17 25 9 34 10 19 29 24 18 28 25 32 2 36 18 8 5 13 Peak Tracking Total 8 | . 3 7 4 8 3 6 4 7 5 5 4 5 2 5 4 4 2 6 Tactical Retreats 27 | . . . . 2 1 1 2 2 1 2 1 . . 10 1 . 1 3 Traps | -11 -10 -9 -8 -8 -8 -8 -7 -7 -6 -6 -5 -5 -4 -4 -3 -3 -2 -1 ------- Run | Yrd Mat Mat Mat Gar Mat Gar Fac Gar Fac Gar Fac Gar Fac Gar Res Tes Res Acc Traps Triggered 29 | . . . . 3 . 2 1 5 . 7 1 6 . 2 1 1 . . Indirectly . | . . . . . . . . . . . . . . . . . . . Trap Hack Attempts . | . . . . . . . . . . . . . . . . . . . Triggered . | . . . . . . . . . . . . . . . . . . . Disarmed . | . . . . . . . . . . . . . . . . . . . Reprogrammed . | . . . . . . . . . . . . . . . . . . . Reused . | . . . . . . . . . . . . . . . . . . . Traps Extracted . | . . . . . . . . . . . . . . . . . . . Installed . | . . . . . . . . . . . . . . . . . . . Triggered . | . . . . . . . . . . . . . . . . . . . Machines | -11 -10 -9 -8 -8 -8 -8 -7 -7 -6 -6 -5 -5 -4 -4 -3 -3 -2 -1 ---------- Run | Yrd Mat Mat Mat Gar Mat Gar Fac Gar Fac Gar Fac Gar Fac Gar Res Tes Res Acc Machines Disabled 42 | . . 5 1 4 1 2 . 4 5 3 2 4 2 2 . 4 1 2 Max in Single Turn 4 | . . 3 1 1 1 1 . 2 4 1 1 1 . 1 . 1 1 1 Garrison Access 1 | . . . . . . . . . . . . . . . . . . 1 Garrison Relay 15 | . . . . 2 . 2 . 2 . 3 . 4 . 2 . . . . Phase Generator 1 | . . . . . . . . 1 . . . . . . . . . . Machines Repaired . | . . . . . . . . . . . . . . . . . . . Machines Dismantled . | . . . . . . . . . . . . . . . . . . . Machines Sabotaged . | . . . . . . . . . . . . . . . . . . . Overloaded Fab Kills . | . . . . . . . . . . . . . . . . . . . Hacking | -11 -10 -9 -8 -8 -8 -8 -7 -7 -6 -6 -5 -5 -4 -4 -3 -3 -2 -1 --------- Run | Yrd Mat Mat Mat Gar Mat Gar Fac Gar Fac Gar Fac Gar Fac Gar Res Tes Res Acc Machines Accessed 61 | . 4 11 2 3 2 2 9 1 5 2 3 1 1 1 3 2 3 6 Terminals 40 | . 2 8 1 3 . 2 5 1 3 2 1 1 . 1 1 1 3 5 Fabricators . | . . . . . . . . . . . . . . . . . . . Repair Stations 4 | . 1 1 . . 1 . 1 . . . . . . . . . . . Recycling Units 4 | . 1 . . . . . 1 . . . . . . . 2 . . . Scanalyzers 6 | . . 2 . . . . 1 . 1 . 1 . . . . 1 . . Garrison Access 7 | . . . 1 . 1 . 1 . 1 . 1 . 1 . . . . 1 Total Hacks 121 | . 15 30 4 4 3 3 24 1 5 2 4 1 2 2 3 3 4 11 Successful 61 | . 11 16 4 2 3 1 7 1 2 1 3 . 2 . 1 1 2 4 Failed 59 | . 3 14 . 2 . 2 17 . 3 1 1 1 . 2 2 2 2 7 Catastrophic 14 | . . 1 . . . . 5 . 2 . . 1 . 1 . 1 1 2 Database Lockouts 1 | . 1 . . . . . . . . . . . . . . . . . Manual 39 | . 7 16 1 . . . 8 . 1 . . . . . . 1 1 4 Terminals 84 | . 9 24 3 4 . 3 15 1 3 2 2 1 . 2 1 1 4 9 Fabricators . | . . . . . . . . . . . . . . . . . . . Repair Stations 8 | . 2 1 . . 2 . 3 . . . . . . . . . . . Recycling Units 10 | . 4 . . . . . 4 . . . . . . . 2 . . . Scanalyzers 10 | . . 5 . . . . 1 . 1 . 1 . . . . 2 . . Garrison Access 9 | . . . 1 . 1 . 1 . 1 . 1 . 2 . . . . 2 Terminal Hacks 22 | . 4 6 2 2 . 1 . 1 . 1 1 . . . . . 2 2 Robot Analysis 2 | . 2 . . . . . . . . . . . . . . . . . Prototype ID Bank 1 | . . . 1 . . . . . . . . . . . . . . . Open Door 2 | . . . . 1 . . . . . . . . . . . . . 1 Level Access Points 2 | . . . . . . . . . . . . . . . . . 1 1 Branch Access Points 1 | . . 1 . . . . . . . . . . . . . . . . Emergency Access Points 4 | . . . . 1 . 1 . 1 . 1 . . . . . . . . Terminal Index 2 | . . . . . . . . . . . 1 . . . . . 1 . Unreport Threat 1 | . . 1 . . . . . . . . . . . . . . . . Locate Traps 3 | . 1 2 . . . . . . . . . . . . . . . . Patrol Status 1 | . . 1 . . . . . . . . . . . . . . . . Zone Layout 3 | . 1 1 1 . . . . . . . . . . . . . . . Fabricator Hacks . | . . . . . . . . . . . . . . . . . . . Repair Station Hacks 5 | . 2 . . . 2 . 1 . . . . . . . . . . . Scan Component 3 | . 1 . . . 1 . 1 . . . . . . . . . . . Repair 2 | . 1 . . . 1 . . . . . . . . . . . . . Recycling Unit Hacks 5 | . 3 . . . . . 1 . . . . . . . 1 . . . Report Inventory 2 | . 1 . . . . . 1 . . . . . . . . . . . Retrieve Components 3 | . 2 . . . . . . . . . . . . . 1 . . . Scanalyzer 9 | . . 5 . . . . 1 . 1 . 1 . . . . 1 . . Insert Component 7 | . . 5 . . . . . . . . 1 . . . . 1 . . Retrieve Study 2 | . . . . . . . 1 . 1 . . . . . . . . . Garrison Access Hacks 9 | . . . 1 . 1 . 1 . 1 . 1 . 2 . . . . 2 Unlock Access 6 | . . . 1 . 1 . 1 . 1 . 1 . 1 . . . . . Seal Access 1 | . . . . . . . . . . . . . . . . . . 1 Coupler Status 2 | . . . . . . . . . . . . . 1 . . . . 1 Unauthorized Hacks 11 | . 2 5 1 . . . 3 . . . . . . . . . . . Terminals 11 | . 2 5 1 . . . 3 . . . . . . . . . . . Assimilate 2 | . . 1 . . . . 1 . . . . . . . . . . . Botnet 9 | . 2 4 1 . . . 2 . . . . . . . . . . . Fabricators . | . . . . . . . . . . . . . . . . . . . Repair Stations . | . . . . . . . . . . . . . . . . . . . Recycling Units . | . . . . . . . . . . . . . . . . . . . Scanalyzers . | . . . . . . . . . . . . . . . . . . . Garrison Access . | . . . . . . . . . . . . . . . . . . . Data Cores Recovered 1 | . 1 . . . . . . . . . . . . . . . . . Used 1 | . 1 . . . . . . . . . . . . . . . . . Hacking Detections 52 | . 3 10 2 3 . 2 8 1 5 1 2 1 . 1 3 2 3 5 Full Trace Events 2 | . . . . . . 1 1 . . . . . . . . . . . Feedback Events . | . . . . . . . . . . . . . . . . . . . Feedback Blocked . | . . . . . . . . . . . . . . . . . . . Robot Schematics Acquired . | . . . . . . . . . . . . . . . . . . . Robots Built . | . . . . . . . . . . . . . . . . . . . Authchips . | . . . . . . . . . . . . . . . . . . . Time . | . . . . . . . . . . . . . . . . . . . Total Robot Build Rating . | . . . . . . . . . . . . . . . . . . . Part Schematics Acquired . | . . . . . . . . . . . . . . . . . . . Parts Built . | . . . . . . . . . . . . . . . . . . . Authchips . | . . . . . . . . . . . . . . . . . . . Time . | . . . . . . . . . . . . . . . . . . . Total Part Build Rating . | . . . . . . . . . . . . . . . . . . . Part Studies Acquired 2 | . . . . . . . 1 . 1 . . . . . . . . . Parts Repaired 2 | . 1 . . . 1 . . . . . . . . . . . . . Time 58 | . 26 . . . 32 . . . . . . . . . . . . . Parts Recycled . | . . . . . . . . . . . . . . . . . . . Recycled Matter . | . . . . . . . . . . . . . . . . . . . Retrieved Matter . | . . . . . . . . . . . . . . . . . . . Retrieved Components 12 | . 9 . . . . . . . . . . . . . 3 . . . Parts Scanalyzed . | . . . . . . . . . . . . . . . . . . . Part Schematics Acquired . | . . . . . . . . . . . . . . . . . . . Parts Damaged . | . . . . . . . . . . . . . . . . . . . Bothacking | -11 -10 -9 -8 -8 -8 -8 -7 -7 -6 -6 -5 -5 -4 -4 -3 -3 -2 -1 ------------ Run | Yrd Mat Mat Mat Gar Mat Gar Fac Gar Fac Gar Fac Gar Fac Gar Res Tes Res Acc Used RIF Installer 6 | . . . . 1 . 1 . 1 . 1 . 1 . 1 . . . . Signal Jammer 1 | . . . . . . . . . . . . 1 . . . . . . Zone Cloak 1 | . . . . . . 1 . . . . . . . . . . . . Patrol Navigation 1 | . . . . . . . . 1 . . . . . . . . . . Alert ID Control 1 | . . . . . . . . . . 1 . . . . . . . . Autooverride 1 | . . . . . . . . . . . . . . 1 . . . . Robots Hacked 104 | . . . . . 1 2 9 11 8 15 13 18 1 12 9 1 2 2 Non-combat 20 | . . . . . . . 4 . 3 . 4 1 . . 4 . 2 2 Combat 84 | . . . . . 1 2 5 11 5 15 9 17 1 12 5 1 . . Autooverrided 3 | . . . . . . . . . . . . . . . 3 . . . Robot Hacks Applied 108 | . . . . . 2 2 10 11 9 15 14 19 1 12 8 1 2 2 drop_inventory 5 | . . . . . . . . . . . 2 . . . 2 . 1 . purge_threat 1 | . . . . . . . . . . . . 1 . . . . . . block_reporting 4 | . . . . . . . 2 . 1 . . . . . 1 . . . map_route 7 | . . . . . . . 1 . 1 . 2 . . . 1 . 1 1 emergency_deploy 1 | . . . . . . . . 1 . . . . . . . . . . find_garrison 3 | . . . . . 1 . . . 1 . 1 . . . . . . . scatter_targeting 1 | . . . . . . . . 1 . . . . . . . . . . disrupt_area 1 | . . . . . . . . 1 . . . . . . . . . . spike_heat 1 | . . . . . . . . . . . 1 . . . . . . . overload_power 1 | . . . . . . . . . . 1 . . . . . . . . amplify_resonance 12 | . . . . . . . . . . 4 2 3 . 3 . . . . wipe_record 1 | . . . . . . . . 1 . . . . . . . . . . reboot_system 4 | . . . . . . 1 2 . . . . . . 1 . . . . overwrite_iff 27 | . . . . . . 1 2 3 2 6 2 7 . 4 . . . . formatsys_low 6 | . . . . . . . 2 . 1 . . 1 . . . 1 . 1 formatsys_high 32 | . . . . . 1 . 1 4 3 4 3 7 1 4 4 . . . formatsys_deep 1 | . . . . . . . . . . . 1 . . . . . . . Relay Couplers Released 65 | . . . . 7 . 7 . 14 . 13 . 15 . 9 . . . . Machine Destruction 61 | . . . . 7 . 7 . 10 . 13 . 15 . 9 . . . . Programmers 4 | . . . . . . . . 4 . . . . . . . . . . Attached 51 | . . . . . 1 . 5 3 3 5 5 10 1 4 11 1 . 2 Fabnet Peak Effective % . | . . . . . . . . . . . . . . . . . . . Robots Rewired 3 | . . . . 3 . . . . . . . . . . . . . . Allies Hacked 3 | . . . . . . . . . 1 . 1 . . . 1 . . . Hacks Repelled . | . . . . . . . . . . . . . . . . . . . Allies | -11 -10 -9 -8 -8 -8 -8 -7 -7 -6 -6 -5 -5 -4 -4 -3 -3 -2 -1 -------- Run | Yrd Mat Mat Mat Gar Mat Gar Fac Gar Fac Gar Fac Gar Fac Gar Res Tes Res Acc Total Allies 72 | . . 1 . 3 1 1 5 7 6 10 7 15 1 8 5 1 . 1 Largest Group 5 | . . 1 1 3 2 1 1 2 2 3 3 4 5 5 3 1 . 1 Highest-Rated Group 194 | . . 10 10 95 70 16 32 53 73 87 123 106 155 194 145 64 . 26 Highest-Rated Ally 64 | . . 10 10 39 39 16 32 32 41 32 41 49 49 56 64 64 . 26 Total Orders 14 | . . . 2 4 . . . . 3 . . . 1 4 . . . . STAY 7 | . . . 1 2 . . . . 1 . . . 1 2 . . . . FOLLOW 6 | . . . 1 2 . . . . 1 . . . . 2 . . . . AID 1 | . . . . . . . . . 1 . . . . . . . . . Ally Attacks 309 | . . . . 39 11 4 15 9 34 32 25 69 2 51 12 6 . . Total Damage 6778 | . . . . 507 185 62 435 271 451 464 762 1233 219 1592 446 151 . . Kills 61 | . . . . 8 5 1 4 3 3 3 12 6 1 14 1 . . . Allies Corrupted 4 | . . . . . . . . . . . 1 . . . 3 . . . Allies Melted 1 | . . . . . . . . . . . . . . . . 1 . . Intel | -11 -10 -9 -8 -8 -8 -8 -7 -7 -6 -6 -5 -5 -4 -4 -3 -3 -2 -1 ------- Run | Yrd Mat Mat Mat Gar Mat Gar Fac Gar Fac Gar Fac Gar Fac Gar Res Tes Res Acc Active Infowar (turns) 13199 | 33 665 1325 289 1391 257 . 1120 192 841 1169 1108 1754 172 1169 866 338 182 328 Optics 4867 | . . . . . . . . . . . 58 1754 172 1169 866 338 182 328 Sensors 297 | . . . . . . . . . . . . . . . . . . 297 IFF 40 | . . . . . . . . . . . 40 . . . . . . . Terrain 66 | . . . . . . . . . . . . . . . . . . 66 Seismic 4820 | 33 665 1325 289 1391 257 . 668 192 . . . . . . . . . . Jamming 3847 | . . . . . . . 677 . 841 1169 1050 . . . . . . 110 Robot Analysis Total 2 | . 2 . . . . . . . . . . . . . . . . . Derelict Logs Recovered . | . . . . . . . . . . . . . . . . . . . Drone Launches . | . . . . . . . . . . . . . . . . . . . Drone Recoveries . | . . . . . . . . . . . . . . . . . . . Exploration | -11 -10 -9 -8 -8 -8 -8 -7 -7 -6 -6 -5 -5 -4 -4 -3 -3 -2 -1 ------------- Run | Yrd Mat Mat Mat Gar Mat Gar Fac Gar Fac Gar Fac Gar Fac Gar Res Tes Res Acc Turns Passed 16465 | 131 665 1325 357 1411 434 865 1795 1256 949 1169 1255 1754 172 1213 866 338 182 328 Spaces Moved 8902 | 63 224 656 117 694 198 384 785 551 422 529 649 784 93 530 681 467 355 720 Core 6 | 3 . . . . . . . . . . . . . . 3 . . . Treads 551 | 60 224 53 . . . . 214 . . . . . . . . . . . Legs . | . . . . . . . . . . . . . . . . . . . Wheels 6379 | . . 603 117 694 198 384 571 551 422 529 649 784 93 530 254 . . . Hover 357 | . . . . . . . . . . . . . . . 47 310 . . Flight 1609 | . . . . . . . . . . . . . . . 377 157 355 720 Fastest Speed 28 | 50 160 150 150 150 165 165 155 125 170 165 145 140 180 165 40 28 28 28 Average Speed 146 | 154 199 163 161 163 165 176 184 173 186 179 163 178 180 176 110 52 33 33 Slowest Speed 2800 | 160 320 320 165 165 165 180 237 185 190 180 180 180 180 195 2800 60 34 37 Overloaded Moves 64 | . . . . . . . . . . . . . . . . 4 9 51 Propulsion Burnouts . | . . . . . . . . . . . . . . . . . . . Robots Hopped 8 | . . . . . . . . . . . . . . . . 3 2 3 Potential Cave-ins 11 | . . . . . . . . . . . . . . . . . 11 . Cave-ins Triggered . | . . . . . . . . . . . . . . . . . . . Exploration Rate (%) 36 | 4 47 61 17 76 18 53 22 64 17 65 22 73 2 56 17 45 12 18 Regions Visited 18 Branch Regions 1 Pre-discovered Areas . | . . . . . . . . . . . . . . . . . . . Known Exits Taken 7 | . . . 1 . 1 . 1 . 1 . 1 . 1 . . . 1 . Unknown Exits Taken 5 | 1 1 1 . . . . . . . . . . . . 1 1 . . Scrap Searched . | . . . . . . . . . . . . . . . . . . . Spaces Dug 69 | . . 2 2 . 7 . 17 1 3 . 3 . . . 1 6 18 9 Terrain Destroyed 231 | . . 63 2 4 13 . 17 53 24 . 15 2 . 2 3 6 18 9 Melee 63 | . . 2 2 . 4 . 17 1 3 . . . . . 1 6 18 9 Projectile 25 | . . . . . 3 . . . 1 . 15 2 . 2 2 . . . AOE 143 | . . 61 . 4 6 . . 52 20 . . . . . . . . . Terrain Rammed . | . . . . . . . . . . . . . . . . . . . Walls Destroyed . | . . . . . . . . . . . . . . . . . . . Machines Disabled . | . . . . . . . . . . . . . . . . . . . Actions | -11 -10 -9 -8 -8 -8 -8 -7 -7 -6 -6 -5 -5 -4 -4 -3 -3 -2 -1 --------- Run | Yrd Mat Mat Mat Gar Mat Gar Fac Gar Fac Gar Fac Gar Fac Gar Res Tes Res Acc Total 11387 | 79 376 846 242 869 292 495 1023 764 537 701 782 1044 99 754 780 538 383 783 Wait 865 | . 97 96 85 38 49 18 100 41 28 37 19 42 . 120 33 39 1 22 Move 8872 | 62 223 655 117 693 198 383 785 550 422 528 648 783 92 529 680 461 350 713 Hop 7 | . . . . . . . . . . . . . . . . 2 2 3 Pick Up 195 | 2 10 25 4 15 8 5 8 27 7 10 11 28 2 13 7 7 2 4 Fast Attach 89 | 7 1 2 . 4 3 4 5 5 4 . 2 21 . 5 15 3 3 5 Attach 99 | . 1 7 5 4 . 3 1 6 6 7 17 13 2 12 11 2 . 2 Detach 18 | . . . . . . 2 . 2 1 2 1 4 . 1 1 . . 4 Swap 149 | . 4 14 6 14 7 14 33 18 11 3 8 9 . 3 1 . . 4 Drop 154 | . 1 16 2 14 11 10 16 16 12 2 9 13 1 4 7 9 2 9 Fire 587 | 8 39 29 21 46 8 44 49 57 43 56 59 79 2 39 8 . . . Melee 135 | . . 2 2 5 8 4 18 2 3 . . 11 . 11 16 14 23 16 Ram . | . . . . . . . . . . . . . . . . . . . Kick . | . . . . . . . . . . . . . . . . . . . Crush . | . . . . . . . . . . . . . . . . . . . Escape Stasis 200 | . . . . 24 . 8 8 40 . 56 8 40 . 16 . . . . Rewire 17 | . . . . 12 . . . . . . . 1 . 1 1 1 . 1 Trap . | . . . . . . . . . . . . . . . . . . . Miscellaneous . | . . . . . . . . . . . . . . . . . . . Route ------- -11/Scrapyard -10/Materials (discovered 2 exits: *Mat / [*Min]) -9/Materials (discovered 2 exits: *Mat / Min) -8/Materials (discovered 2 exits: [*Sto] / Gar) -8/Garrison (discovered 3 exits: *Mat x3) -8/Materials (discovered 2 exits: [*Sto] / Gar) -8/Garrison (discovered 2 exits: *Fac x2) -7/Factory -7/Garrison (discovered 2 exits: *Fac x2) -6/Factory -6/Garrison (discovered 3 exits: *Fac x3) -5/Factory (discovered 3 exits: *Fac / [*Upp] / Gar) -5/Garrison (discovered 2 exits: *Fac x2) -4/Factory -4/Garrison (discovered 2 exits: *Res x2) -3/Research (discovered 2 exits: *Res / *Tes) -3/Testing -2/Research (discovered 3 exits: *Acc x3) -1/Access To Epsilon Eridani History --------- Turn | Location | Event 12 | -11/Scrapyard | Discovered new exit (range 15) 132 | -11/Scrapyard | Entered Materials 255 | -10/Materials | Repaired Lgt. Treads 322 | -10/Materials | Build established: Mutant 329 | -10/Materials | Discovered new exit (range 12) 563 | -10/Materials | Central database locked down 732 | -10/Materials | Derelicts attacked the area 752 | -10/Materials | Discovered new exit (range 15) 789 | -10/Materials | Core integrity fell below 50% 797 | -10/Materials | Entered another Materials area 797 | -9/Materials | Evolved 2 slots: Utility x1, Weapon x1 822 | -9/Materials | Lost 3 parts (1n2w) 1625 | -9/Materials | Identified exit to Mines 1656 | -9/Materials | Build established: Gunner 2094 | -9/Materials | Discovered new exit (range 8) 2122 | -9/Materials | Entered another Materials area 2122 | -8/Materials | Accompanied by 1 ally 2122 | -8/Materials | Evolved 2 slots: Utility x2 2214 | -8/Materials | Discovered new exit (range 16) 2416 | -8/Materials | Garrison activated, responded to threat 2468 | -8/Materials | Lost 3 parts (1n1u1w) 2479 | -8/Materials | Identified exit to Garrison 2479 | -8/Materials | Entered Garrison 2479 | -8/Garrison | Accompanied by 1 ally 2520 | -8/Garrison | Triggered checkpoint 2619 | -8/Garrison | Triggered checkpoint 2808 | -8/Garrison | Triggered checkpoint 2999 | -8/Garrison | Discovered new exit (range 9) 3047 | -8/Garrison | Triggered checkpoint 3215 | -8/Garrison | Discovered new exit (range 8) 3357 | -8/Garrison | Triggered checkpoint 3396 | -8/Garrison | Garrison Relay disabled 3559 | -8/Garrison | Triggered checkpoint 3606 | -8/Garrison | Build established: Scavenger-Gunner 3638 | -8/Garrison | Triggered checkpoint 3771 | -8/Garrison | Discovered new exit (range 10) 3796 | -8/Garrison | Installed Relay Interface Framework 3890 | -8/Garrison | Entered Materials 3890 | -8/Materials | Accompanied by 2 allies 3963 | -8/Materials | Repaired Arm. Wheel 4029 | -8/Materials | Discovered new exit (range 15) 4324 | -8/Materials | Identified exit to Garrison 4324 | -8/Materials | Entered Garrison 4540 | -8/Garrison | Triggered checkpoint 4595 | -8/Garrison | Discovered new exit (range 12) 4626 | -8/Garrison | Triggered checkpoint 4660 | -8/Garrison | Expanded RIF knowledge: Zone Cloak 4677 | -8/Garrison | Garrison Relay disabled 4776 | -8/Garrison | Build established: Bothacker-Tank 4800 | -8/Garrison | Triggered checkpoint 4987 | -8/Garrison | Discovered new exit (range 13) 5030 | -8/Garrison | Triggered checkpoint 5087 | -8/Garrison | Garrison Relay disabled 5189 | -8/Garrison | Entered Factory 5189 | -7/Factory | Evolved 2 slots: Utility x2 6984 | -7/Factory | Identified exit to Garrison 6984 | -7/Factory | Entered Garrison 7024 | -7/Garrison | Phase Generator disabled 7145 | -7/Garrison | Triggered checkpoint 7237 | -7/Garrison | Garrison Relay disabled 7374 | -7/Garrison | Triggered checkpoint 7694 | -7/Garrison | Triggered checkpoint 7731 | -7/Garrison | Expanded RIF knowledge: Patrol Navigation 7814 | -7/Garrison | Discovered new exit (range 14) 7918 | -7/Garrison | Triggered checkpoint 7958 | -7/Garrison | Garrison Relay disabled 8118 | -7/Garrison | Triggered checkpoint 8189 | -7/Garrison | Discovered new exit (range 13) 8240 | -7/Garrison | Entered Factory 8240 | -6/Factory | Accompanied by 1 ally 8240 | -6/Factory | Evolved 2 slots: Utility x2 8802 | -6/Factory | P-60 Hacker assimilated allied Smith 5a 9189 | -6/Factory | Identified exit to Garrison 9189 | -6/Factory | Entered Garrison 9189 | -6/Garrison | Accompanied by 1 ally 9245 | -6/Garrison | Triggered checkpoint 9282 | -6/Garrison | Garrison Relay disabled 9434 | -6/Garrison | Triggered checkpoint 9493 | -6/Garrison | Triggered checkpoint 9508 | -6/Garrison | Lost 5 allies 9580 | -6/Garrison | Discovered new exit (range 12) 9666 | -6/Garrison | Triggered checkpoint 9763 | -6/Garrison | Discovered new exit (range 9) 9823 | -6/Garrison | Triggered checkpoint 9862 | -6/Garrison | Garrison Relay disabled 10184 | -6/Garrison | Discovered new exit (range 11) 10199 | -6/Garrison | Expanded RIF knowledge: Alert ID Control 10247 | -6/Garrison | Triggered checkpoint 10269 | -6/Garrison | Garrison Relay disabled 10358 | -6/Garrison | Entered Factory 10358 | -5/Factory | Accompanied by 1 ally 10358 | -5/Factory | Evolved 2 slots: Propulsion x1, Utility x1 10449 | -5/Factory | Discovered new exit (range 16) 10494 | -5/Factory | Build established: Botlord-Tank 10881 | -5/Factory | Discovered new exit (range 11) 11335 | -5/Factory | Assimilated ARC 6a with formatsys_deep 11395 | -5/Factory | Lost 3 allies 11479 | -5/Factory | Lost 11 parts (1p2n5u3w) 11607 | -5/Factory | Identified exit to Garrison 11613 | -5/Factory | Entered Garrison 11697 | -5/Garrison | System corruption reached 10% 11716 | -5/Garrison | Core integrity fell below 50% 11757 | -5/Garrison | Lost 13 parts (2p2n7u2w) 11798 | -5/Garrison | Core integrity fell below 20% 11985 | -5/Garrison | Heavy support dispatched to Factory 12215 | -5/Garrison | Triggered checkpoint 12229 | -5/Garrison | Heavy support dispatched to Factory 12256 | -5/Garrison | Garrison Relay disabled 12258 | -5/Garrison | Garrison Relay disabled 12420 | -5/Garrison | Triggered checkpoint 12434 | -5/Garrison | Triggered checkpoint 12448 | -5/Garrison | Triggered checkpoint 12487 | -5/Garrison | Lost 5 allies 12721 | -5/Garrison | Triggered checkpoint 12746 | -5/Garrison | Garrison Relay disabled 12748 | -5/Garrison | Spotted B-75 Beast 12800 | -5/Garrison | Discovered new exit (range 8) 12982 | -5/Garrison | Heavy support dispatched to Factory 13011 | -5/Garrison | Triggered checkpoint 13052 | -5/Garrison | Garrison Relay disabled 13121 | -5/Garrison | Triggered checkpoint 13224 | -5/Garrison | Discovered new exit (range 19) 13229 | -5/Garrison | Triggered checkpoint 13275 | -5/Garrison | Heavy support dispatched to Factory 13275 | -5/Garrison | Expanded RIF knowledge: Signal Jamming 13367 | -5/Garrison | Entered Factory 13367 | -4/Factory | Accompanied by 4 allies 13367 | -4/Factory | Evolved 2 slots: Utility x2 13521 | -4/Factory | Garrison activated, responded to threat 13537 | -4/Factory | Identified exit to Garrison 13539 | -4/Factory | Entered Garrison 13539 | -4/Garrison | Accompanied by 4 allies 13601 | -4/Garrison | Triggered checkpoint 13605 | -4/Garrison | Triggered checkpoint 13644 | -4/Garrison | Lost 4 allies 13667 | -4/Garrison | Triggered checkpoint 13707 | -4/Garrison | Lost 3 allies 13804 | -4/Garrison | Lost 5 parts (3u2w) 13866 | -4/Garrison | Heavy support dispatched to Research 13909 | -4/Garrison | Discovered new exit (range 12) 14075 | -4/Garrison | Garrison Relay disabled 14360 | -4/Garrison | Build established: Botlord-Mutant 14415 | -4/Garrison | Discovered new exit (range 13) 14468 | -4/Garrison | Triggered checkpoint 14496 | -4/Garrison | Garrison Relay disabled 14600 | -4/Garrison | Expanded RIF knowledge: Autooverride 14752 | -4/Garrison | Entered Research 14752 | -3/Research | Accompanied by 2 allies 14752 | -3/Research | Evolved 2 slots: Power x1, Propulsion x1 15126 | -3/Research | Spotted B-86 Titan 15179 | -3/Research | Lost 3 allies 15264 | -3/Research | Lost 10 parts (3p1n2u4w) 15264 | -3/Research | System corruption reached 10% 15420 | -3/Research | Discovered new exit (range 12) 15512 | -3/Research | Discovered new exit (range 45) 15618 | -3/Research | Entered Testing 15618 | -3/Testing | Accompanied by 1 ally 15885 | -3/Testing | Found Potential Cannon 15948 | -3/Testing | Spotted PG-CUTLYEKJ6U 15953 | -3/Testing | Discovered new exit (range 9) 15956 | -3/Testing | Entered Research 15956 | -2/Research | Evolved 2 slots: Propulsion x1, Utility x1 16063 | -2/Research | Identified exit to Access 16138 | -2/Research | Entered Access 16138 | -1/Access | Evolved 2 slots: Propulsion x1, Utility x1 16161 | -1/Access | Identified exit to Surface 16292 | -1/Access | Spotted B-99 Colossus 16466 | *** | Escaped! Last Messages --------------- 16386_ Penetrated by Slug. 16386_ Slug penetrates Wall. 16388_ Detecting nearby Garrison Access. 16390_ Slug penetrates Wall. 16391_ U-05 Engineer builds a Wall. 16392_ U-05 Engineer lays Concrete. 16393_ Slug penetrates Wall. 16394_ U-05 Engineer lays Concrete. 16396_ The unstable cave ceiling collapses. 16396_ U-05 Engineer builds a Wall. 16434_ Relay Coupler [Heavy] destroyed. 16434_ Field Propulsion Array destroyed. 16442_ Dropped Imp. Datajack. 16447_ Acquired Adv. Remote Datajack. 16452_ Dropped Imp. Phase Shifter. 16453_ Dropped Adv. Remote Datajack. 16458_ Connecting with Terminal... >>Open(Door) Sealed Barrier opened. 16464_ The Access Shell folds into the floor. Map ----- +----------------------------------------------------+ | ?????????????????????????????????????????????????? | | ?????????????????????????????????????????????????? | | ?????????????????????????????????????????????????? | | ?????????????????????????????????????????????????? | | ?????????????????????????????????????????????????? | | ?????????????????????????????????????????????????? | | ?????????????????????????????????????????????????? | | ??????????????????????????????????????? ?????????? | | ?????????????????????????????????????? ?????????? | | ?????????????????????????????????????? #????????? | | ?????????????????????????????????????? #????????? | | ?????????????????????????????????????# #????????? | | ????????????????????????????????????? #????????? | | ????????????????????????????????????? +????????? | | ?????????????????????????????????????# #????????? | | ?????????????????????????????????????# #????????? | | ?????????????????????????????????????# #????????? | | ?????????????????????????????????????# #????????? | | ?????????????????????????????????????# #????????? | | ?????????????????????????????###?????# #????????? | | ????????????????????########## ####### #????????? | | ????????????????????" #????????? | | ????????????????????" #????????? | | ????????????????????" #????????? | | ????????????????????" #????????? | | ????????????????????" "@ #????????? | | ????????????????????" "" #????????? | | ????????????????????" #????????? | | ????????????????????" #????????? | | ????????????????????" """ """ #????????? | | ????????????????????" """T""" #????????? | | ????????????????????########## ####### #????????? | | ?????????????????????????????###?????# #????????? | | ?????????????????????????????????????# #????????? | | ?????????????????????????????????????# #????????? | | ?????????????????????????????????????# #????????? | | ?????????????????????????????????????# #????????? | | ???????????????????????????###???????# #????????? | | ???????????????????????#####"######### #????????? | | ???????????????????????# !| ## ##???????? | | ??????????????########## # #???????? | | ###########+### ## + "T #???????? | | ## ]| # "" #???????? | | ## | # #???????? | | " /+ | ## ##???????? | | ## ## #????????? | | ## ## #????????? | | ####+## ####### ## ## #????????? | | ??????# #?????### #### ## #????????? | | ??????# #???????# #??# ## #????????? | +----------------------------------------------------+ Best States ------------- Heat Dissipation 81 Energy Generation 35 Energy Capacity 385 Matter Stores 300 Matter Capacity 300 Sight Range 22 Robot Scan Range 16 Terrain Scan Range 24 Terrain Scan Density 10 Jamming Range 14 Armor Coverage 750 Resistance: TH 30 Propulsion Shielding 33 Weapon Shielding 66 Weapon Cycling 20 Phase Shifting 10 Evasion (%) 73 Targeting Accuracy 6 Recoil Reduction 2 Offensive Hacking 10 Defensive Hacking 26 Relay Coupler Types 7 Relay Coupler Value 265 Authchip Count 1 Item Schematics ----------------- None Robot Schematics ------------------ None Fabricated ------------ Nothing Repaired ---------- Lgt. Treads | 83% | -10/Materials Arm. Wheel | 40% | -8/Materials Studied --------- Arm. Wheel | -7/Factory | Hacked Arm. Huge Wheel | -6/Factory | Hacked Alien Tech Used ----------------- None Achievements -------------- Deep Understanding Ghost 'Em Hack The Planet Oppo Buddy Packrat Pwned Versatile Watcher Gambling Challenges ------------ None Game ------ Seed ArcsightRemoteDrillbomb Manual? 0 Play Time 03:17:42 Cumulative 97.4 hours Start 2026.09.20 @ 12:51:31 End 2026.09.20 @ 16:45:29 Sessions 3 Manual Loads 0 Difficulty Rogue Special Mode None Game No. 83 Rogue 43 Adventurer 40 Explorer 0 Win Type 0 Total 5 Types 3/1/0/1/0/0/0/0/0/0 Lore% 44 Gallery% 48 Achievement% 41 Wizard Run 0 Options --------- Layout 0 ASCII 0 Keyboard 0 Movement Mouse Keybinds 0 Fullscreen 0 Font 16/SmallcapsGlow Map View 88x55 Zoom Use 0% Tactical HUD 1 Map Filters NONE Filters NONE Steam 1 RUN: a574f52f-a58a-45d4-b051-a89830ed13d4